Cogmind - Beta 14 *** ADVENTURER MODE // 2024.08.08 @ 01:22:12 Player: Gallgagger Result: Destroyed by G-34 Mercenary with Small Laser Performance ------------- Evolutions (1) 500 Regions Visited (4) 800 Robots Destroyed (60) 300 Value Destroyed (1383) 1383 Prototype IDs (1) 20 Alien Tech Used (0) 0 Bonus (46) 46 TOTAL SCORE: 3049 Bonus ------- Follower Combat Kills 46 Cogmind --------- Core Integrity 0/400 Matter 300/300 Energy 280/280 System Corruption 0% Temperature Cool (6) Movement Rolling (93) Location -9/Mines Parts ------- > --- POWER (1) -------- Heavy Ion Engine > --- PROPULSION (3) --- Wheel Compact Wheel Compact Wheel > --- UTILITY (3) ------ Medium Storage Unit Melee Analysis Suite Improved Melee Analysis Suite > --- WEAPON (2) ------- Heavy Hammer > --- INVENTORY (10) --- Carbon-fiber Leg Improved Heat Sink Improved Heat Sink Weight Redist. System Transport Network Coupler Microactuators Hacking Suite Assault Rifle Peak State ------------ > --- POWER ------------ Light Nuclear Core > --- PROPULSION ------- Aluminum Leg Aluminum Leg Improved Carbon-fiber Leg > --- UTILITY ---------- Medium Storage Unit Improved Melee Analysis Suite Improved Shield Generator > --- WEAPON ----------- Heavy Hammer Makeshift Spear > --- INVENTORY -------- Heavy Ion Engine Light Nuclear Core Improved Heat Sink Improved Heat Sink Weight Redist. System Transport Network Coupler Microactuators Light Armor Plating Hacking Suite Assault Rifle [Rating: 26] Favorites ----------- Power Light Nuclear Core Engine Heavy Ion Engine Power Core Light Nuclear Core Propulsion Aluminum Leg Leg Aluminum Leg Wheel Wheel Utility Medium Storage Unit Device Improved Heat Sink Storage Medium Storage Unit Processor Improved Melee Analysis Suite Protection Light Armor Plating Weapon Assault Rifle Ballistic Gun Assault Rifle Launcher Grenade Launcher Impact Weapon Heavy Hammer Piercing Weapon Makeshift Spear Build | -11 -10 -10 -9 -9 ------- Run | Yrd Mat Min Mat Min Slots Evolved 2 | . . . 2 . Power . | . . . . . Propulsion 1 | . . . 1 . Utility 1 | . . . 1 . Weapon . | . . . . . Parts Attached 38 | 6 10 2 9 11 Power 7 | 1 1 1 2 2 Engine 3 | 1 . . 1 1 Core 4 | . 1 1 1 1 Reactor . | . . . . . Propulsion 9 | 2 . . 3 4 Treads . | . . . . . Leg 6 | 2 . . 3 1 Wheel 3 | . . . . 3 Hover . | . . . . . Flight . | . . . . . Utility 10 | 1 2 . 3 4 Device 2 | . . . 1 1 Storage 2 | 1 1 . . . Processor 3 | . . . 1 2 Hackware . | . . . . . Protection 3 | . 1 . 1 1 Artifact . | . . . . . Weapon 12 | 2 7 1 1 1 Energy Gun . | . . . . . Energy Cannon . | . . . . . Ballistic Gun 9 | 2 7 . . . Ballistic Cannon . | . . . . . Launcher 1 | . . . 1 . Special Weapon . | . . . . . Impact Weapon 1 | . . . . 1 Slashing Weapon . | . . . . . Piercing Weapon 1 | . . 1 . . Special Melee Weapon . | . . . . . Unidentified Prototypes 1 | . . . 1 . Parts Lost 12 | . 1 . 3 8 Power 2 | . . . . 2 Propulsion 5 | . . . 2 3 Utility 3 | . . . 1 2 Weapon 2 | . 1 . . 1 Highest Loss Streak 7 | . 1 . 2 7 To Critical Strikes . | . . . . . Average Slot Usage (%) 91 | . 91 97 98 74 Engine 3 | . 5 . . 7 Core 9 | . 8 14 11 3 Leg 25 | . 28 28 32 10 Wheel 2 | . . . . 10 Device 2 | . . . 6 3 Storage 12 | . 14 14 11 11 Processor 3 | . . . 4 13 Protection 8 | . 6 14 10 . Ballistic Gun 11 | . 27 11 . . Launcher 2 | . . . 10 . Impact Weapon 2 | . . . . 10 Piercing Weapon 6 | . . 13 11 3 Peak Build Rating 26 | 6 9 13 18 26 Average Rating 12 | 5 7 12 17 17 On Entrance 9 | . 6 9 12 18 Naked Turns . | . . . . . Heaviest Build 24 | 13 22 22 24 24 Greatest Support 42 | 20 20 20 30 42 Greatest Overweight (x) 7 | 2 1 1 1 7 Average Overweight (x) . | . . . . 1 Largest Inventory Capacity 10 | 8 10 10 10 10 Average Capacity 9 | 7 9 10 10 10 Most Carried 10 | 4 8 10 10 10 Average Carried 7 | 2 6 8 8 8 Final Capacity 10 | 8 10 10 10 10 Final Carried 10 | 4 7 10 10 8 Class Distribution -------------------- 74% | Mutant 20% | Scavenger-Mutant 4% | Gladiator Dominant Class ---------------- Mutant | -10/Materials Mutant | -10/Mines Scavenger-Mutant | -9/Materials Mutant | -9/Mines Resources | -11 -10 -10 -9 -9 ----------- Run | Yrd Mat Min Mat Min Matter Collected 878 | 207 429 57 90 95 Remotely . | . . . . . Salvage Created 2066 | . 755 103 414 794 Parts 102 | . 44 9 32 17 Haulers Intercepted 2 | . 2 . . . Recyclers Shooed . | . . . . . Parts Field Recycled . | . . . . . Retrieved Matter . | . . . . . Parts Self-Destructed . | . . . . . Prevented . | . . . . . Kills | -11 -10 -10 -9 -9 ------- Run | Yrd Mat Min Mat Min Combat Hostiles Destroyed 46 | . 15 4 11 16 Melee 31 | . . 4 11 16 Guns 15 | . 15 . . . Classes Destroyed 13 | . 4 1 2 6 Worker 6 | . 1 . . 5 Builder 5 | . . . . 5 Tunneler 4 | . . . . 4 Hauler 2 | . 2 . . . Recycler 3 | . . . . 3 Operator 1 | . . . 1 . Watcher 2 | . 2 . . . Swarmer 6 | . . 3 3 . Grunt 26 | . 15 1 5 5 Duelist 1 | . . . . 1 Sentry 3 | . . . 3 . Demolisher 1 | . . . . 1 Assembled 9 | . . . . 9 Best Kill Streak 9 | . 3 1 4 9 Combat Bots Only 9 | . 3 1 4 9 Max Kills in Single Turn 2 | . 2 1 1 1 Gunslinging . | . . . . . Exploded . | . . . . . Melee 1 | . . 1 1 1 Uniques/NPCs Destroyed . | . . . . . Combat | -11 -10 -10 -9 -9 -------- Run | Yrd Mat Min Mat Min Hostile Shots Fired 229 | . 64 39 58 68 Missed 56 | . 15 9 15 17 Damage Taken 1979 | . 414 207 377 981 Core 515 | . 76 37 66 336 Absorbed by Shields 119 | . . . . 119 Ignored by Resistances 611 | . 128 67 113 303 Regen/Repaired (Parts) 93 | . 93 . . . Core Remaining (%) 77 | 100 . 54 . . Volleys Fired 51 | . 51 . . . Largest 2 | . 2 . . . Hottest 40 | . 40 . . . Shots Fired 102 | . 101 1 . . Gun 102 | . 101 1 . . Cannon . | . . . . . Launcher . | . . . . . Special . | . . . . . Kinetic 102 | . 101 1 . . Thermal . | . . . . . Explosive . | . . . . . Electromagnetic . | . . . . . Robot Hit Streak 25 | . 25 . . . Robot Miss Streak 2 | . 2 . . . Penetration Max . | . . . . . Secondary Targets 1 | . 1 . . . Max Gunslinging Chain 1 | . 1 . . . Shots Hit Robots 166 | . 80 8 26 52 Core Hits 78 | . 39 5 11 23 Critical Kills 1 | . . . . 1 Critical Parts Destroyed 4 | . . . . 4 Critical Strikes 13 | . . 2 3 8 Smash 5 | . . . . 5 Impale 8 | . . 2 3 3 Melee Attacks 109 | . . 14 35 60 Impact 30 | . . . . 30 Slashing . | . . . . . Piercing 79 | . . 14 35 30 Sneak Attacks 19 | . . . 1 18 Combat Hostiles . | . . . . . Follow-up Attacks 1 | . . . . 1 Damage Inflicted 4799 | . 997 205 809 2788 Guns 997 | . 997 . . . Cannons . | . . . . . Explosions . | . . . . . Melee 3802 | . . 205 809 2788 Ramming . | . . . . . Kinetic 997 | . 997 . . . Thermal . | . . . . . Explosive . | . . . . . Electromagnetic . | . . . . . Impact 1853 | . . . . 1853 Slashing . | . . . . . Piercing 1949 | . . 205 809 935 Highest Corruption 1 | . 1 1 . . Average Corruption 1 | . 1 1 . . Corruption Purged . | . . . . . Corruption Blocked . | . . . . . Effects 16 | . 5 11 . . Message Errors 3 | . 1 2 . . Matter Fused 5 | . 1 4 . . Energy Discharges 2 | . . 2 . . Data Loss (minor) 5 | . 3 2 . . Misfires 1 | . . 1 . . Overload Shots . | . . . . . Overflow Damage 1098 | . . 7 116 975 Projectiles . | . . . . . Explosions . | . . . . . Melee 1098 | . . 7 116 975 Knockbacks 8 | . . . . 8 Impact 8 | . . . . 8 Kinetic . | . . . . . Secondary . | . . . . . Self-Inflicted Damage . | . . . . . Shots . | . . . . . Rammed . | . . . . . Targets Rammed . | . . . . . Kicked . | . . . . . Crushed . | . . . . . Highest Temperature 34 | . 34 . . 5 Average Temperature 9 | . 9 . . 5 Received Heat Transfer 604 | . 300 27 132 145 Siege Activations . | . . . . . Robots Corrupted 7 | . . . . 7 Combat Hostiles . | . . . . . Parts Fried 24 | . . . . 24 Impact Corruptions 28 | . . . . 28 Robots Melted . | . . . . . Combat Hostiles . | . . . . . Parts Melted . | . . . . . Heat Transferred . | . . . . . Parts Sabotaged . | . . . . . Parts Stolen . | . . . . . Parts Stripped . | . . . . . Power Chain Reactions . | . . . . . Alert | -11 -10 -10 -9 -9 ------- Run | Yrd Mat Min Mat Min Peak Influence 200 | . 200 158 190 165 Initial 50 | . . 28 16 50 Average 74 | . 101 39 87 82 Maximum Alert Level 1 | . 1 . . . Low Security (%) 99 | 100 96 100 100 100 Level 1 . | . 3 . . . Level 2 . | . . . . . Level 3 . | . . . . . Level 4 . | . . . . . Level 5 . | . . . . . High Security . | . . . . . Max Security . | . . . . . Squads Dispatched 6 | . 3 . 2 1 Investigation 5 | . 3 . 1 1 Extermination . | . . . . . Reinforcement 1 | . . . 1 . Assault . | . . . . . Garrison . | . . . . . Intercept . | . . . . . Searches Triggered . | . . . . . Construction Impeded . | . . . . . Haulers Reinforced . | . . . . . Active Scanning Responses . | . . . . . Cargo Convoy Interrupts . | . . . . . Stealth | -11 -10 -10 -9 -9 --------- Run | Yrd Mat Min Mat Min Distress Signals 2 | . 1 . 1 . Communications Jammed . | . . . . . Distress Signals . | . . . . . Times Spotted 73 | . 24 11 12 26 Peak Tracking Total 8 | . 4 3 5 8 Tactical Retreats 4 | . 1 2 1 . Traps | -11 -10 -10 -9 -9 ------- Run | Yrd Mat Min Mat Min Traps Triggered 6 | . 4 . 2 . Indirectly . | . . . . . Trap Hack Attempts . | . . . . . Triggered . | . . . . . Disarmed . | . . . . . Reprogrammed . | . . . . . Reused . | . . . . . Traps Extracted . | . . . . . Installed . | . . . . . Triggered . | . . . . . Machines | -11 -10 -10 -9 -9 ---------- Run | Yrd Mat Min Mat Min Machines Disabled 1 | . . 1 . . Max in Single Turn . | . . . . . Machines Repaired . | . . . . . Machines Dismantled . | . . . . . Machines Sabotaged . | . . . . . Overloaded Fab Kills . | . . . . . Hacking | -11 -10 -10 -9 -9 --------- Run | Yrd Mat Min Mat Min Machines Accessed 10 | . 7 . 2 1 Terminals 7 | . 5 . 2 . Fabricators . | . . . . . Repair Stations 1 | . 1 . . . Recycling Units 1 | . 1 . . . Scanalyzers . | . . . . . Garrison Access . | . . . . . Total Hacks 19 | . 16 . 2 1 Successful 12 | . 11 . . 1 Failed 7 | . 5 . 2 . Catastrophic 2 | . . . 2 . Database Lockouts . | . . . . . Manual 2 | . 2 . . . Terminals 13 | . 11 . 2 . Fabricators . | . . . . . Repair Stations 2 | . 2 . . . Recycling Units 3 | . 3 . . . Scanalyzers . | . . . . . Garrison Access . | . . . . . Terminal Hacks 8 | . 7 . . 1 Record 1 | . 1 . . . Part Schematic 1 | . 1 . . . Open Door 1 | . . . . 1 Dispatch Records 1 | . 1 . . . Hauler Manifests 1 | . 1 . . . Zone Layout 3 | . 3 . . . Fabricator Hacks . | . . . . . Repair Station Hacks 2 | . 2 . . . Scan Component 1 | . 1 . . . Repair 1 | . 1 . . . Recycling Unit Hacks 2 | . 2 . . . Recycle Component 1 | . 1 . . . Process 1 | . 1 . . . Scanalyzer . | . . . . . Garrison Access Hacks . | . . . . . Unauthorized Hacks . | . . . . . Terminals . | . . . . . Fabricators . | . . . . . Repair Stations . | . . . . . Recycling Units . | . . . . . Scanalyzers . | . . . . . Garrison Access . | . . . . . Data Cores Recovered . | . . . . . Used . | . . . . . Hacking Detections 6 | . 4 . 2 . Full Trace Events 1 | . 1 . . . Feedback Events . | . . . . . Feedback Blocked . | . . . . . Robot Schematics Acquired . | . . . . . Robots Built . | . . . . . Authchips . | . . . . . Time . | . . . . . Total Robot Build Rating . | . . . . . Part Schematics Acquired 1 | . 1 . . . Parts Built . | . . . . . Authchips . | . . . . . Time . | . . . . . Total Part Build Rating . | . . . . . Parts Repaired 1 | . 1 . . . Time 26 | . 26 . . . Parts Recycled 1 | . 1 . . . Recycled Matter 46 | . 46 . . . Retrieved Matter . | . . . . . Retrieved Components . | . . . . . Parts Scanalyzed . | . . . . . Part Schematics Acquired . | . . . . . Parts Damaged . | . . . . . Bothacking | -11 -10 -10 -9 -9 ------------ Run | Yrd Mat Min Mat Min Used RIF Installer . | . . . . . Robots Hacked . | . . . . . Non-combat . | . . . . . Combat . | . . . . . Robot Hacks Applied . | . . . . . Relay Couplers Released . | . . . . . Fabnet Peak Effective % . | . . . . . Robots Rewired . | . . . . . Allies Hacked . | . . . . . Hacks Repelled . | . . . . . Allies | -11 -10 -10 -9 -9 -------- Run | Yrd Mat Min Mat Min Total Allies 3 | . . 3 . . Largest Group 3 | . . 3 1 . Highest-Rated Group 40 | . . 40 16 . Highest-Rated Ally 16 | . . 16 16 . Total Orders . | . . . . . Ally Attacks 15 | . . 14 1 . Total Damage 162 | . . 144 18 . Kills 5 | . . 5 . . Allies Corrupted . | . . . . . Allies Melted . | . . . . . Intel | -11 -10 -10 -9 -9 ------- Run | Yrd Mat Min Mat Min Robot Analysis Total . | . . . . . Derelict Logs Recovered 2 | . . 1 . 1 Drone Launches . | . . . . . Drone Recoveries . | . . . . . Exploration | -11 -10 -10 -9 -9 ------------- Run | Yrd Mat Min Mat Min Turns Passed 3857 | 83 1101 1104 781 788 Spaces Moved 2225 | 63 592 589 493 488 Core 45 | 9 . . . 36 Treads . | . . . . . Legs 1873 | 54 592 589 493 145 Wheels 307 | . . . . 307 Hover . | . . . . . Flight . | . . . . . Fastest Speed 50 | 50 120 120 120 90 Average Speed 142 | 111 146 173 121 125 Slowest Speed 400 | 150 190 190 190 400 Overloaded Moves . | . . . . . Propulsion Burnouts . | . . . . . Robots Hopped . | . . . . . Cave-ins Triggered . | . . . . . Exploration Rate (%) 54 | 4 74 82 44 70 Regions Visited 4 Branch Regions 2 Pre-discovered Areas 1 | . . 1 . . Known Exits Taken . | . . . . . Unknown Exits Taken 4 | 1 1 1 1 . Scrap Searched 3 | . . 1 . 2 Spaces Dug 3 | . . . 3 . Terrain Destroyed 3 | . . . 3 . Melee 3 | . . . 3 . Projectile . | . . . . . AOE . | . . . . . Terrain Rammed . | . . . . . Walls Destroyed . | . . . . . Machines Disabled . | . . . . . Actions | -11 -10 -10 -9 -9 --------- Run | Yrd Mat Min Mat Min Total 2678 | 72 725 656 636 589 Wait 228 | . 63 44 94 27 Move 2221 | 62 591 588 492 488 Hop . | . . . . . Pick Up 23 | 4 7 4 5 3 Fast Attach 16 | 6 2 . 2 6 Attach 10 | . 2 . 4 4 Detach 2 | . . 1 . 1 Swap 12 | . 6 2 3 1 Drop 12 | . 3 3 1 5 Fire 51 | . 51 . . . Melee 103 | . . 14 35 54 Ram . | . . . . . Kick . | . . . . . Crush . | . . . . . Escape Stasis . | . . . . . Rewire . | . . . . . Trap . | . . . . . Miscellaneous . | . . . . . Route ------- -11/Scrapyard -10/Materials (discovered 3 exits: *Mat x2 / [*Min]) -10/Mines -9/Materials -9/Mines History --------- Turn | Location | Event 14 | -11/Scrapyard | Discovered new exit (range 16) 84 | -11/Scrapyard | Entered Materials 163 | -10/Materials | Discovered new exit (range 13) 316 | -10/Materials | Build established: Mutant 365 | -10/Materials | Discovered new exit (range 13) 694 | -10/Materials | Discovered new exit (range 10) 1017 | -10/Materials | Repaired Assault Rifle 1185 | -10/Materials | Entered Mines 1222 | -10/Mines | A weapon hastily lodged in a ceiling crevice suddenly fell to the ground 1561 | -10/Mines | Discovered new exit (range 8) 1582 | -10/Mines | Assisted by bots powering up and referring to "LRC-V3" 1710 | -10/Mines | YI-UF0 nonchalantly dropped a Grenade Launcher on the ground 2000 | -10/Mines | Learned location of Zion (-7) 2289 | -10/Mines | Entered Materials 2289 | -9/Materials | Accompanied by 1 ally 2289 | -9/Materials | Evolved 2 slots: Propulsion x1, Utility x1 2788 | -9/Materials | Build established: Scavenger-Mutant 3016 | -9/Materials | Discovered new exit (range 13) 3070 | -9/Materials | Entered Mines 3075 | -9/Mines | Met a Derelict shopkeep closing up shop 3131 | -9/Mines | Met a Derelict bent on vengeance 3131 | -9/Mines | Found a hidden stash of uninstalled traps 3267 | -9/Mines | Assembled infested the area 3329 | -9/Mines | Core integrity fell below 50% 3330 | -9/Mines | Destroyed 9 combat bots 3344 | -9/Mines | Core integrity fell below 20% 3368 | -9/Mines | Lost 7 parts (1p3n2u1w) 3610 | -9/Mines | Build established: Mutant 3757 | -9/Mines | Joined a pair of Derelicts in attacking an 0b10 outpost 3758 | -9/Mines | Learned 2 Materials zone layouts 3858 | -9/Mines | Destroyed by G-34 Mercenary with Small Laser Last Messages --------------- 03759_ Critical hit (Burn: +37). 03761_ K-01 Serf collects debris. 03762_ XC-7SI(g) suffers critical hit (Burn). 03762_ XC-7SI(g) destroyed. 03764_ Y-45 Defender suffers critical hit (Smash). 03764_ Destroyed Lgt. Treads. 03764_ Y-45 Defender system corrupted by crushing effect. 03764_ K-01 Serf collects debris. 03765_ Y-45 Defender destroyed. 03767_ K-01 Serf collects debris. 03775_ Sneak attack on K-01 Serf. 03775_ Destroyed Lgt. Ion Engine. 03775_ K-01 Serf system corrupted by crushing effect. 03776_ K-01 Serf system terminally corrupted. 03776_ Med. Matter Pod fried. 03778_ Acquired Carbon-fiber Leg. 03842_ G-47 Trooper destroyed. Map ----- +----------------------------------------------------+ | ??????# [%! ## ##### # ### #???? | | ??????#%#### %#### # ## # ## #???? | | ??????# ## # ### ## ##### ### #??? | | ??##### #### # # % ###??# #?? | | ??# ### % # ########### ##?????# ?? | | ### ###### ## # ## #??????# ??? | | ## #????# ### # # ####??????? ???? | | ## #????# #?### ### ##??????????# ?????? | | #????# ##??##### #????????????# ???????? | | #####???## #???????#### #?????????????????????? | | #???????# ##??????????##?????????????????????? | | #???????# #?????????????????????????????????? | | #???????## ##????????????????????????????????? | | #####????## ##???????????????????????????????? | | =#?????## ##??????????????????????????????? | | ###%######## #??????????????????????????????? | | ??# ## #??????????????????????????????? | | ### ## ##??????????????????????????????? | | % ## ##???????????????????????????????? | | ###### ## #????????????????????????????????? | | ?????# ### ##?###???????????????????????????? | | ?????# #?## ### ##??????????????????????????? | | ?????# #### % % #####??????????????????????? | | ?????# ! ### #??????????????????????? | | ????##!! *##### ### #??????????????????????? | | #???# #???## #?#@#########??????????????? | | #??# ! ! ##????## ##?#=g* #???????????? | | #??## ###??????#####??###########??????????????? | | ?????# ##????????????????????????????????????????? | | ##### #?????????????????????????????????????????? | | ############??????????????????????????????? | | ### ## #??????????????????????????????? | | ??# ############# #??????????????????????????????? | | ??# #???????????# #??????????????????????????????? | | ??# #???????????# #??####????????????????????????? | | ??# #######?????# #### ##???????????????????????? | | ??# ##"!!"##????# ##??????????????????????? | | ### #"!]! "#????##### #??????????????????????? | | #%[ =%#????????## #??????????????????????? | | ###### %!!##?????????# ##??????????????????????? | | #???###//###?????????# #???????????????????????? | | #???# #?????????# ##???????????????????????? | | ##### % ###???????# ##?????????????? #????????? | | ### ##??##### #????????????? ?????????? | | #### #??# #### #?????? #??????????? | | ???# #??# ### #???? #???????????? | | ???## ##??# #?# ######?? #???????????? | | ????##### ##???# #?# ###### #????????????? | | ????????## ###### #?# %! #????????????? | | ?????????# #?########## #????????????? | +----------------------------------------------------+ Best States ------------- Heat Dissipation 42 Energy Generation 14 Energy Capacity 280 Matter Stores 300 Matter Capacity 300 Sight Range 16 Terrain Scan Density 10 Armor Coverage 150 Resistance: KI 20 Resistance: TH 20 Resistance: EX 20 Resistance: EM 20 Resistance: I 20 Resistance: S 20 Resistance: P 20 Evasion (%) 55 Melee Accuracy 11 Offensive Hacking 10 Item Schematics ----------------- Cargo Storage Unit | -10/Materials | Hacked Robot Schematics ------------------ None Fabricated ------------ Nothing Alien Tech Used ----------------- None Achievements -------------- None Challenges ------------ None Game ------ Seed TerrabombHypercooledScrap Manual? 0 Play Time 00:26:10 Cumulative 76.0 hours Start 2024.08.08 @ 00:58:20 End 2024.08.08 @ 01:22:12 Sessions 1 Manual Loads 0 Difficulty Adventurer Special Mode None Game No. 49 Rogue 0 Adventurer 49 Explorer 0 Win Type - Total 4 Types 2/0/1/1/0/0/0/0/0 Lore% 31 Gallery% 47 Achievement% 65 Wizard Run 0 Options --------- Layout 2 ASCII 0 Keyboard 0 Movement Numpad Keybinds 0 Fullscreen 2 Font 24/Smallcaps Map View 50x44 Zoom Use 0% Tactical HUD 1 Map Filters NONE Filters NONE Steam 1 RUN: 8dcbb078-e69e-4408-bcb8-8d39fb5f2c0d